fUSD/lending_fUSD_20250419
["ID","MTS","AMOUNT","RATE_DAILY","PERIOD"]
[358411388,1745092244555,-4032.05553932,0.0002,2]
[358411391,1745092244570,-956347.60317038,0.0002,2]
[358411479,1745092246132,-4033.602,0.0002,2]
[358411480,1745092246142,-7081.57832799,0.0002,2]
[358411481,1745092246154,-424.0,0.0002,2]
[358411482,1745092246165,-427.648,0.0002,2]
[358411483,1745092246191,-314.89998154,0.0002,2]
[358411484,1745092246203,-8249.9,0.0002,2]
[358411485,1745092246247,-344.04163993,0.0002,2]
[358411486,1745092246258,-19510.76583152,0.0002,2]
[358411487,1745092246302,-811.75284001,0.0002,2]
[358411504,1745092282924,450.0,0.00017,2]
[358411505,1745092283989,500.0,0.00019,2]
[358411506,1745092471747,500.0,0.00039999,31]
[358411507,1745092471801,500.0,0.00039999,31]
[358411508,1745092472045,500.0,0.00039999,31]
[358411509,1745092472141,500.0,0.00039999,31]
[358411510,1745092472221,500.0,0.00039999,31]
[358411511,1745092472344,500.0,0.00039999,31]
[358411512,1745092472375,500.0,0.00039999,31]
[358411513,1745092472407,500.0,0.00039999,31]
[358411514,1745092472448,500.0,0.00039999,31]
[358411515,1745092472480,500.0,0.00039999,31]
[358411516,1745092472511,500.0,0.00039999,31]
[358411517,1745092472542,500.0,0.00039999,31]
[358411518,1745092472749,500.0,0.00039999,31]
[358411519,1745092472782,500.0,0.00039999,31]
[358411520,1745092472816,201.10955922,0.00039999,31]
[358411521,1745092472851,500.0,0.00039999,31]
[358411522,1745092472891,500.0,0.00039999,31]
[358411523,1745092472925,500.0,0.00039999,31]
[358411524,1745092472956,500.0,0.00039999,31]
[358411526,1745092483575,229.52640081,0.00043836,30]
[358411529,1745093079272,500.0,0.00039999,31]
[358411530,1745093079374,500.0,0.00039999,31]
[358411531,1745093079513,260.33286777,0.00039999,31]
[358411532,1745093079543,500.0,0.00039999,31]
[358411533,1745093079579,500.0,0.00039999,31]
[358411534,1745093079613,500.0,0.00039999,31]
[358411536,1745093432060,-250.0,0.00019825,2]
[358411537,1745093432071,-500.0,0.00019973,2]
[358411538,1745093432080,-300.0,0.00019994,2]
[358411539,1745093432090,-300.0,0.00019994,2]
[358411540,1745093432100,-914.0,0.00019995,2]
[358411541,1745093432110,-794.0,0.00019995,2]
[358411542,1745093432119,-581.23771562,0.00019995,2]
[358411543,1745093432131,-325.76228438,0.00019995,2]
[358411544,1745093432141,-674.23771562,0.00019995,2]
[358411548,1745093438118,-513.060823,0.00019726,2]
[358411549,1745093438129,-217.75763593,0.000199,2]
[358411550,1745093438142,-765.76228438,0.00019995,2]
[358411551,1745093438153,-1281.0,0.00019995,2]
[358411552,1745093438163,-546.0,0.00019995,2]
[358411553,1745093438172,-576.0,0.00019995,2]
[358411554,1745093438182,-152.0,0.00019995,2]
[358411555,1745093438192,-1126.0,0.00019995,2]
[358411556,1745093438201,-173.04772154,0.00019995,2]
[358411557,1745093438211,-3636.04162614,0.00019995,2]
[358411558,1745093438483,-1329.38,0.00019995,2]
[358411570,1745093440278,-2071.21416859,0.00019995,2]
[358411571,1745093440288,-500.0,0.00019999,2]
[358411572,1745093440298,-2317.65948477,0.0002,2]
[358411573,1745093440309,-50759.39232122,0.0002,2]
[358411574,1745093440569,-379.89314291,0.0002,2]
[358411631,1745093445231,-24208.48702384,0.0002,2]
[358411641,1745093486636,200.0,0.000438,56]
[358411644,1745093811797,576.0,0.000438,30]
[358411645,1745094094096,450.0,0.00017,2]
[358411646,1745094095180,500.0,0.00019,2]
[358411649,1745094272426,500.0,0.00039999,31]
[358411650,1745094272480,328.09986033,0.00039999,31]
[358411652,1745094382613,200.0,0.000438,56]
[358411678,1745094632193,-1458.8,0.00019766,2]
[358411679,1745094632203,-504.71428238,0.00019894,2]
[358411680,1745094632213,-504.71428236,0.00019895,2]
[358411681,1745094632223,-178.82163182,0.000199,2]
[358411682,1745094632232,-300.0,0.00019994,2]
[358411683,1745094632242,-1440.0,0.00019995,2]
[358411684,1745094632252,-1281.0,0.00019995,2]
[358411685,1745094632262,-195.825,0.00019995,2]
[358411686,1745094632272,-155.381,0.00019995,2]
[358411687,1745094632282,-720.46369044,0.00019995,2]
[358411688,1745094632294,-3359.18430956,0.00019995,2]
[358411689,1745094632304,-322.02819843,0.00019995,2]
[358411690,1745094632325,-591.97180157,0.00019995,2]
[358411691,1745094632335,-440.39018253,0.00019995,2]
[358411719,1745094638263,-675.60981747,0.00019995,2]
[358411720,1745094638273,-1316.05498668,0.0002,2]
[358411721,1745094638319,-6913.47275985,0.0002,2]
[358411722,1745094638329,-13525.4712492,0.0002,2]
[358411723,1745094638430,-93884.13098751,0.0002,2]
[358411724,1745094638543,-7615.00000001,0.0002,2]
[358411725,1745094640425,-21278.74410741,0.0002,2]
[358411726,1745094640437,-641.01223463,0.0002,2]
[358411727,1745094640448,-12436.00077842,0.0002,2]
[358411728,1745094640537,-392.61197805,0.0002,2]
[358411729,1745094640548,-297.96628425,0.0002,2]
[358411734,1745094642248,-50.02748871,0.0002,2]
[358411735,1745094642319,-1326.5,0.0002,2]
[358411736,1745094642448,-3366.34569117,0.0002,2]
[358411739,1745094643478,-510.09,0.00019995,2]
[358411740,1745094643490,-283.91,0.00019995,2]
[358411741,1745094643499,-1119.21488222,0.0002,2]
[358411742,1745094643511,-503.0,0.0002,2]
[358411743,1745094643522,-775.84174059,0.0002,2]
[358411750,1745094645617,-27001.85796174,0.0002,2]
[358411751,1745094645629,-127546.43301236,0.0002,2]
[358411752,1745094645713,-7189.59825592,0.0002,2]
[358411753,1745094645725,-618.9845479,0.0002,2]
[358411754,1745094645736,-424.03816643,0.0002,2]
[358411756,1745094646292,-1837.95642066,0.0002,2]
[358411757,1745094646512,-134002.31268793,0.0002,2]
[358411759,1745094646527,-2081.89020263,0.0002,2]
[358411766,1745094843688,250.0,0.000199,5]
[358411767,1745094902758,205.91267154,0.000199,3]
[358411768,1745094904230,-300.0,0.00019899,2]
[358411769,1745094904257,-680.99984104,0.000199,2]
[358411771,1745094946795,-11521.17836818,0.000199,2]
[358411772,1745094946822,-223.12603632,0.00019972,2]
[358411773,1745094946846,-501.57679306,0.00019973,2]
[358411774,1745094946870,-500.0,0.00019973,2]
[358411775,1745094946895,-160.6606908,0.00019973,2]
[358411776,1745094946921,-500.0,0.00019973,2]
[358411777,1745094946946,-1151.7422706,0.00019986,2]
[358411778,1745094962883,250.0,0.00019997,5]
[358411779,1745094978032,178.82163182,0.000199,2]
[358411780,1745095035340,962.1320913,0.00019986,2]
[358411781,1745095064498,3452.50438852,0.0001999,2]
[358411782,1745095064523,6624.86515119,0.0001999,2]
[358411783,1745095098370,178.82163182,0.000199,2]
[358411784,1745095120310,7164.12174256,0.000199,2]
[358411785,1745095206517,177.1,0.0001999,2]
[358411786,1745095206754,177.1,0.0001999,2]
[358411787,1745095207036,177.1,0.0001999,2]
[358411788,1745095207099,1419.53,0.0001993,2]
[358411789,1745095207574,177.1,0.0001999,2]
[358411790,1745095207872,177.1,0.0001999,2]
[358411791,1745095208013,177.1,0.0001999,2]
[358411792,1745095208250,50.69848873,0.0001999,2]
[358411793,1745095208274,126.40151127,0.0001999,2]
[358411794,1745095208499,177.1,0.0001999,2]
[358411795,1745095209034,177.1,0.0001999,2]
[358411796,1745095209256,177.1,0.0001999,2]
[358411797,1745095210664,776.6,0.0001999,2]
[358411798,1745095210867,776.6,0.0001999,2]
[358411799,1745095215223,155.39,0.0001999,2]
[358411800,1745095283689,200.0,0.000438,56]
[358411805,1745095466620,758.2372651,0.00019986,2]
[358411806,1745095472196,343.39966718,0.00039999,31]
[358411807,1745095472225,316.38133531,0.00039999,31]
[358411808,1745095472260,354.89994014,0.00039999,31]
[358411809,1745095503072,150.0,0.00019973,2]
[358411810,1745095521921,760.0,0.000438,30]
[358411811,1745095522181,325.2093,0.000438,30]
[358411842,1745095826914,325.0,0.000438,30]
[358411846,1745095831395,-300.0,0.00019994,2]
[358411847,1745095831404,-300.0,0.00019994,2]
[358411848,1745095831414,-250.0,0.00019994,2]
[358411849,1745095831424,-914.0,0.00019995,2]
[358411850,1745095831433,-236.71158992,0.00019995,2]
[358411851,1745095831444,-500.83097731,0.00019995,2]
[358411852,1745095831456,-56.45743277,0.00019995,2]
[358411853,1745095831465,-528.25012315,0.00019995,2]
[358411854,1745095831558,-683.38187685,0.00019995,2]
[358411855,1745095831568,-152.0,0.00019995,2]
[358411856,1745095831577,-4015.901,0.00019995,2]
[358411857,1745095831587,-300.0,0.00019999,2]
[358411858,1745095831596,-666.0,0.00019999,2]
[358411859,1745095831606,-500.0,0.00019999,2]
[358411860,1745095831615,-500.0,0.00019999,2]
[358411862,1745095831624,-850.0,0.00019999,2]
[358411864,1745095831633,-4114.76387327,0.0002,2]
[358411866,1745095831642,-11802.86040697,0.0002,2]
[358411910,1745095837418,-112275.57908745,0.0002,2]
[358411911,1745095837429,-8064.19918998,0.0002,2]
[358411912,1745095837474,-34712.52626796,0.0002,2]
[358411913,1745095837485,-43764.19513496,0.0002,2]
[358411914,1745095837534,-865.25081315,0.0002,2]
[358411915,1745095837546,-476.43552863,0.0002,2]
[358411998,1745095839862,-8069.00853833,0.0002,2]
[358412195,1745095842497,-150.0,0.00019995,2]
[358412196,1745095842507,-1521.55876691,0.0002,2]
[358412199,1745095845758,-1.8633791,0.0002,2]
[358412209,1745095872090,1527.7175796,0.00019986,2]
[358412210,1745095877248,152.67,0.00043525,30]
[358412211,1745095904071,450.0,0.00017,2]
[358412212,1745095905146,500.0,0.00019,2]
[358412213,1745095955479,4383.1392,0.000199,2]
[358412214,1745095978367,1298.9887,0.000199,2]
[358412215,1745096067086,174.34921465,0.000199,2]
[358412217,1745096115548,4891.91354368,0.00019986,2]
[358412218,1745096115575,635.62019872,0.00019986,2]
[358412219,1745096145137,1243.1450082,0.00019986,2]
[358412223,1745096183579,200.0,0.000438,56]
[358412224,1745096225667,587.0761696,0.00019986,2]
[358412225,1745096410065,162.73687116,0.000199,2]
[358412226,1745096438004,152.0,0.00019985,2]
[358412227,1745096440014,5553.6692645,0.00019986,2]
[358412228,1745096443455,794.0,0.00019985,2]
[358412229,1745096466484,1242.2273453,0.00019986,2]
[358412231,1745096530366,162.73687116,0.000199,2]
[358412232,1745096546799,509.1775156,0.00019986,2]
[358412233,1745096557354,167.156689,0.00038316,56]
[358412236,1745096790013,4846.646275,0.00019986,2]
[358412238,1745096897982,440.5215941,0.00019986,2]
[358412240,1745096925113,171.07990096,0.00019986,2]
[358412241,1745096925139,903.64935084,0.00019986,2]
[358412292,1745097037579,-403.3,0.00019993,2]
[358412293,1745097037637,-419.05689739,0.00019993,2]
[358412294,1745097037648,-779.54,0.00019993,2]
[358412295,1745097037696,-534.10310261,0.00019993,2]
[358412296,1745097037706,-152.0,0.00019993,2]
[358412297,1745097037715,-300.0,0.00019994,2]
[358412298,1745097037725,-117.68393858,0.00019994,2]
[358412299,1745097037736,-182.31606142,0.00019994,2]
[358412300,1745097037746,-150.0,0.00019995,2]
[358412301,1745097037755,-500.0,0.00019995,2]
[358412302,1745097037765,-206.0,0.00019995,2]
[358412303,1745097037774,-300.0,0.00019999,2]
[358412304,1745097037783,-500.0,0.00019999,2]
[358412305,1745097037794,-500.0,0.00019999,2]
[358412306,1745097037803,-180.76938101,0.0002,2]
[358412307,1745097037856,-1876.61255563,0.0002,2]
[358412308,1745097037865,-39688.18913865,0.0002,2]
[358412309,1745097037876,-24531.55106111,0.0002,2]
[358412515,1745097040129,-93683.18004977,0.0002,2]
[358412671,1745097042785,-3799.64850195,0.0002,2]
[358412672,1745097045695,-416.67439986,0.0002,2]
[358412674,1745097080156,200.0,0.000438,56]
[358412675,1745097096292,4837.6242,0.000199,2]
[358412676,1745097107529,217.953,0.000199,2]
[358412677,1745097113486,3917.8814,0.000199,2]
[358412678,1745097131962,316.1433,0.000199,2]
[358412679,1745097140838,5132.5796691,0.00019986,2]
[358412680,1745097156438,167.15669,0.000192,2]
[358412681,1745097172870,644.0005,0.000199,2]
[358412682,1745097189893,363.64890436,0.000199,2]
[358412683,1745097190059,941.77049564,0.000199,2]
[358412684,1745097193775,5558.86651866,0.000199,2]
[358412685,1745097193803,6500.6370143,0.000199,2]
[358412686,1745097193829,500.6370143,0.000199,2]
[358412687,1745097193855,500.6370143,0.000199,2]
[358412688,1745097193880,500.6370143,0.000199,2]
[358412689,1745097193906,3500.670143,0.000199,2]
[358412691,1745097363047,250.0,0.00019754,5]
[358412692,1745097363125,250.0,0.00019856,5]
[358412693,1745097466054,-44426.49739966,0.00048658,30]
[358412694,1745097466080,-632.6424124,0.00048658,120]
[358412695,1745097466106,-104252.18652894,0.00048658,60]
[358412696,1745097466131,-252.96103614,0.00048658,30]
[358412697,1745097481526,250.0,0.00019709,5]
[358412698,1745097483279,-266.4684,0.00043888,30]
[358412699,1745097483307,-51383.0,0.00044,120]
[358412700,1745097483334,-200.0,0.000448,60]
[358412701,1745097483362,-200.0,0.000458,64]
[358412702,1745097483390,-200.0,0.000468,68]
[358412703,1745097483420,-150.0,0.00047403,120]
[358412704,1745097483447,-200.0,0.000478,72]
[358412705,1745097483473,-483.4313945,0.00048,120]
[358412706,1745097483498,-300.0,0.00048,30]
[358412707,1745097483525,-356.88526308,0.00048,120]
[358412708,1745097483551,-900.0,0.00048249,30]
[358412709,1745097483577,-2000.0,0.00048278,30]
[358412710,1745097483603,-900.0,0.00048393,30]
[358412711,1745097483629,-500.0,0.00048395,30]
[358412712,1745097483660,-2000.0,0.00048408,30]
[358412713,1745097483687,-500.0,0.00048445,30]
[358412714,1745097483714,-155.0,0.00048493,120]
[358412715,1745097483744,-819.21,0.000485,45]
[358412716,1745097483777,-819.21,0.000485,45]
[358412717,1745097483809,-819.21,0.000485,45]
[358412718,1745097483842,-819.21,0.000485,45]
[358412719,1745097483874,-819.21,0.000485,45]
[358412720,1745097483909,-819.21,0.000485,45]
[358412721,1745097483944,-819.21,0.000485,45]
[358412722,1745097483975,-819.21,0.000485,45]
[358412723,1745097484010,-819.21,0.000485,45]
[358412724,1745097484040,-819.21,0.000485,45]
[358412725,1745097484071,-819.21,0.000485,45]
[358412726,1745097484102,-819.21,0.000485,45]
[358412727,1745097484128,-988.45833251,0.00048545,30]
[358412728,1745097484157,-2000.0,0.00048579,30]
[358412729,1745097484183,-2459.05373333,0.00048585,30]
[358412730,1745097484209,-241.89,0.00048634,30]
[358412731,1745097484237,-500.0,0.00048664,30]
[358412732,1745097484264,-900.0,0.00048678,30]
[358412733,1745097484290,-900.0,0.00048704,30]
[358412734,1745097484316,-2000.0,0.00048768,30]
[358412735,1745097484342,-500.0,0.00048771,30]
[358412736,1745097484368,-200.0,0.000488,76]
[358412737,1745097484394,-500.0,0.00048803,30]
[358412738,1745097484420,-500.0,0.00048816,30]
[358412739,1745097484446,-900.0,0.00048877,30]
[358412740,1745097484471,-550.0,0.00049,30]
[358412741,1745097484497,-246.75919269,0.000491,30]
[358412742,1745097484523,-500.0,0.00049113,30]
[358412743,1745097484549,-900.0,0.00049114,30]
[358412744,1745097484575,-2000.0,0.00049135,30]
[358412745,1745097484600,-500.0,0.00049136,30]
[358412746,1745097484642,-500.0,0.00049344,30]
[358412747,1745097484673,-150.0,0.00049363,120]
[358412748,1745097484699,-500.0,0.0004938,30]
[358412749,1745097484728,-26866.77,0.000494,60]
[358412750,1745097484757,-500.0,0.00049418,30]
[358412751,1745097484785,-500.0,0.00049429,30]
[358412752,1745097484814,-500.0,0.00049429,30]
[358412753,1745097484845,-500.0,0.00049475,30]
[358412754,1745097484871,-500.0,0.00049522,30]
[358412755,1745097484898,-500.0,0.00049719,30]
[358412756,1745097484926,-500.0,0.00049765,30]
[358412757,1745097484952,-500.0,0.00049786,30]
[358412758,1745097484979,-200.0,0.000498,80]
[358412759,1745097485005,-900.0,0.00049808,30]
[358412760,1745097485031,-500.0,0.00049817,30]
[358412761,1745097485057,-500.0,0.00049822,30]
[358412762,1745097485243,-2000.0,0.00049833,30]
[358412763,1745097485279,-150.0,0.00049865,120]
[358412764,1745097485304,-500.0,0.00049894,30]
[358412765,1745097485328,-500.0,0.00049922,30]
[358412766,1745097485354,-900.0,0.00049924,30]
[358412767,1745097485380,-2000.0,0.00049941,30]
[358412768,1745097485405,-900.0,0.00049997,30]
[358412769,1745097485429,-25067.50515268,0.0005,120]
[358412770,1745097485454,-1324.63078407,0.0005,120]
[358412771,1745097485478,-462.13319445,0.0005,30]
[358412772,1745097485502,-200.0,0.0005,81]
[358412773,1745097485528,-150.0,0.0005,120]
[358412774,1745097485553,-500.0,0.00050012,60]
[358412775,1745097485577,-500.0,0.0005014,60]
[358412776,1745097485601,-500.0,0.00050208,60]
[358412777,1745097485627,-500.0,0.00050225,60]
[358412778,1745097485652,-900.0,0.00050233,60]
[358412779,1745097485677,-500.0,0.00050251,60]
[358412780,1745097485703,-500.0,0.00050312,60]
[358412781,1745097485728,-500.0,0.00050331,60]
[358412782,1745097485753,-900.0,0.00050352,60]
[358412783,1745097485777,-500.0,0.00050395,60]
[358412784,1745097485801,-500.0,0.00050448,60]
[358412785,1745097485828,-150.0,0.00050567,120]
[358412786,1745097485856,-2000.0,0.00050571,60]
[358412787,1745097485883,-2000.0,0.00050682,60]
[358412788,1745097485908,-2000.0,0.0005069,60]
[358412789,1745097485936,-500.0,0.00050764,60]
[358412790,1745097485962,-500.0,0.00050769,60]
[358412791,1745097485987,-200.0,0.000508,84]
[358412792,1745097486012,-500.0,0.00050802,60]
[358412793,1745097486037,-900.0,0.0005081,60]
[358412794,1745097486062,-500.0,0.00050823,60]
[358412795,1745097486088,-500.0,0.00050864,60]
[358412796,1745097486114,-900.0,0.00050877,60]
[358412797,1745097486139,-500.0,0.00050958,60]
[358412798,1745097486164,-1000.0,0.00051,120]
[358412799,1745097486189,-200.0,0.00051,85]
[358412800,1745097486214,-500.0,0.00051001,60]
[358412801,1745097486240,-150.0,0.00051051,120]
[358412802,1745097486264,-500.0,0.00051056,60]
[358412803,1745097486290,-500.0,0.000511,60]
[358412804,1745097486315,-900.0,0.00051112,60]
[358412805,1745097486341,-900.0,0.00051127,60]
[358412806,1745097486367,-500.0,0.00051241,60]
[358412807,1745097486391,-500.0,0.00051307,60]
[358412808,1745097486416,-2000.0,0.00051358,60]
[358412809,1745097486441,-2000.0,0.00051359,60]
[358412810,1745097486465,-2000.0,0.00051426,60]
[358412811,1745097486489,-900.0,0.00051435,60]
[358412812,1745097486513,-407.69626393,0.00051437,60]
[358412813,1745097486537,-500.0,0.00051468,60]
[358412814,1745097486561,-790.79197937,0.00051524,60]
[358412815,1745097486586,-500.0,0.00051577,60]
[358412816,1745097486611,-500.0,0.00051662,60]
[358412817,1745097486635,-500.0,0.00051798,60]
[358412818,1745097486661,-26866.77,0.000518,60]
[358412819,1745097486686,-213.09,0.000518,88]
[358412820,1745097486712,-500.0,0.00051801,60]
[358412821,1745097486737,-500.0,0.0005192,60]
[358412822,1745097486761,-500.0,0.00051924,60]
[358412823,1745097486786,-2000.0,0.00051945,60]
[358412824,1745097486811,-500.0,0.00051966,60]
[358412825,1745097486836,-619.0,0.00052,120]
[358412826,1745097486864,-151.0,0.00052,120]
[358412827,1745097486891,-753.97449097,0.00052,30]
[358412828,1745097486916,-200.0,0.00052,89]
[358412829,1745097486942,-500.0,0.00052022,60]
[358412830,1745097486967,-500.0,0.00052069,60]
[358412831,1745097486991,-500.0,0.00052086,60]
[358412832,1745097487016,-2000.0,0.0005212,60]
[358412833,1745097487042,-150.0,0.00052188,120]
[358412834,1745097487067,-2000.0,0.00052376,60]
[358412835,1745097487092,-500.0,0.00052444,60]
[358412836,1745097487118,-500.0,0.00052484,60]
[358412837,1745097487142,-500.0,0.0005253,60]
[358412838,1745097487166,-500.0,0.00052549,60]
[358412839,1745097487191,-150.0,0.00052629,120]
[358412840,1745097487216,-2000.0,0.00052632,60]
[358412841,1745097487241,-500.0,0.00052639,60]
[358412842,1745097487265,-500.0,0.00052641,60]
[358412843,1745097487290,-500.0,0.00052674,60]
[358412844,1745097487316,-150.0,0.00052676,120]
[358412845,1745097487342,-500.0,0.00052694,60]
[358412846,1745097487367,-500.0,0.00052707,60]
[358412847,1745097487392,-500.0,0.00052707,60]
[358412848,1745097487417,-2000.0,0.00052751,60]
[358412849,1745097487440,-500.0,0.00052782,60]
[358412850,1745097487628,-2000.0,0.00052786,60]
[358412851,1745097487652,-2000.0,0.0005279,60]
[358412852,1745097487678,-900.0,0.00052867,60]
[358412853,1745097487702,-900.0,0.00052881,60]
[358412854,1745097487728,-500.0,0.00052958,60]
[358412855,1745097487752,-500.0,0.00052977,60]
[358412856,1745097487777,-500.0,0.0005299,60]
[358412857,1745097487801,-200.0,0.00053,92]
[358412858,1745097487826,-2114.41,0.00053,60]
[358412859,1745097487851,-500.0,0.0005313,60]
[358412860,1745097487876,-2000.0,0.00053172,60]
[358412861,1745097487901,-500.0,0.00053198,60]
[358412862,1745097487932,-500.0,0.000532,60]
[358412863,1745097487958,-2000.0,0.0005323,60]
[358412864,1745097487983,-500.0,0.00053379,60]
[358412865,1745097488009,-500.0,0.00053386,60]
[358412866,1745097488033,-603.11774535,0.00053403,60]
[358412867,1745097488059,-500.0,0.00053424,30]
[358412868,1745097488085,-500.0,0.00053425,120]
[358412869,1745097488114,-500.0,0.00053425,120]
[358412870,1745097488142,-500.0,0.00053425,120]
[358412871,1745097488171,-383.78332097,0.00053425,120]
[358412872,1745097488197,-500.0,0.00053425,120]
[358412873,1745097488224,-454.0498887,0.00053425,120]
[358412874,1745097488250,-500.0,0.00053425,120]
[358412875,1745097488277,-500.0,0.00053425,120]
[358412876,1745097488303,-900.0,0.00053452,60]
[358412877,1745097488329,-515.21319215,0.00053522,60]
[358412878,1745097488355,-26866.77,0.000536,60]
[358412879,1745097488382,-2000.0,0.00053618,60]
[358412880,1745097488407,-2000.0,0.00053636,60]
[358412881,1745097488433,-500.0,0.00053726,60]
[358412882,1745097488463,-500.0,0.00053759,60]
[358412883,1745097488488,-500.0,0.00053835,60]
[358412884,1745097488515,-2000.0,0.00053858,60]
[358412885,1745097488540,-900.0,0.00053859,60]
[358412886,1745097488566,-500.0,0.00053867,60]
[358412887,1745097488591,-1000.0,0.000539,120]
[358412888,1745097488620,-2000.0,0.00053902,60]
[358412889,1745097488648,-538.86208508,0.00053915,60]
[358412890,1745097488674,-500.0,0.00053931,60]
[358412891,1745097488703,-511.69456519,0.00053972,32]
[358412892,1745097488740,-200.0,0.00054,96]
[358412893,1745097488776,-10134.15562174,0.00054,120]
[358412894,1745097488815,-500.0,0.00054141,60]
[358412895,1745097488853,-500.0,0.00054145,60]
[358412896,1745097488889,-2000.0,0.00054148,60]
[358412897,1745097488928,-900.0,0.00054165,60]
[358412898,1745097488968,-503.75407807,0.00054167,60]
[358412899,1745097489007,-2000.0,0.00054171,60]
[358412900,1745097489069,-900.0,0.00054205,60]
[358412901,1745097489111,-507.7204203,0.00054274,60]
[358412902,1745097489151,-900.0,0.00054313,60]
[358412903,1745097489192,-500.0,0.00054323,60]
[358412904,1745097489225,-342.25311896,0.00054327,60]
[358412905,1745097489268,-500.0,0.00054345,60]
[358412906,1745097489309,-900.0,0.00054346,60]
[358412907,1745097489342,-545.06900729,0.00054426,60]
[358412908,1745097489380,-500.0,0.0005444,60]
[358412909,1745097489417,-900.0,0.00054441,60]
[358412910,1745097489458,-500.0,0.00054455,60]
[358412911,1745097489507,-3781.90535399,0.00054493,60]
[358412912,1745097489550,-641.85033446,0.00054541,60]
[358412913,1745097489586,-900.0,0.00054558,60]
[358412914,1745097489624,-500.0,0.00054579,60]
[358412915,1745097489659,-301.65679112,0.00054622,60]
[358412916,1745097489693,-910.81938432,0.00054623,60]
[358412917,1745097489728,-840.68931285,0.00054658,60]
[358412918,1745097489769,-773.01483052,0.00054712,60]
[358412919,1745097489804,-1388.52110199,0.00054723,60]
[358412920,1745097489842,-6334.221967,0.00054794,120]
[358412921,1745097489878,-2683.146083,0.00054794,120]
[358412922,1745097489912,-315.084804,0.00054794,120]
[358412923,1745097489945,-570.42082389,0.00054794,120]
[358412924,1745097489979,-546.48764909,0.00054794,120]
[358412925,1745097490013,-503.33226538,0.00054794,120]
[358412926,1745097490045,-511.34024708,0.00054794,120]
[358412927,1745097490077,-500.0,0.00054794,120]
[358412928,1745097490109,-500.0,0.00054794,120]
[358412929,1745097490142,-535.57621465,0.00054794,120]
[358412930,1745097490175,-500.0,0.00054794,120]
[358412931,1745097490209,-500.0,0.00054794,120]
[358412932,1745097490242,-500.0,0.00054794,120]
[358412933,1745097490274,-500.0,0.00054794,120]
[358412934,1745097490502,-544.61527645,0.00054794,120]
[358412935,1745097490535,-500.0,0.00054794,120]
[358412936,1745097490560,-500.0,0.00054794,120]
[358412937,1745097490586,-552.1212433,0.00054794,120]
[358412938,1745097490613,-531.78841705,0.00054794,120]
[358412939,1745097490638,-529.83093571,0.00054794,120]
[358412940,1745097490663,-534.5451197,0.00054794,120]
[358412941,1745097490688,-500.0,0.00054794,120]
[358412942,1745097490714,-529.86178858,0.00054794,120]
[358412943,1745097490741,-545.69318824,0.00054794,120]
[358412944,1745097490767,-569.36091586,0.00054794,120]
[358412945,1745097490792,-500.0,0.00054794,120]
[358412946,1745097490816,-528.90881597,0.00054794,120]